Cogmind - Beta 11.1 @@@ ROGUE MODE // 2022.05.24 @ 12:39:16 Player: Demise Result: Destroyed by 8R-AWN with 8R-AWN's Boregun Performance ------------- Evolutions (0) 0 Regions Visited (3) 600 Robots Destroyed (33) 165 Value Destroyed (493) 493 Prototype IDs (41) 820 Alien Tech Used (0) 0 Bonus (173) 173 TOTAL SCORE: 2251 Bonus ------- Follower Combat Kills 7 Aligned with FarCom 300 Friendly Fire -134 Cogmind --------- Core Integrity 0/250 Matter 75/300 Energy 83/100 System Corruption 2% Temperature Cool (0) Movement Walking (90) Location -10/Exiles Parts ------- > --- POWER (1) -------- (None) > --- PROPULSION (2) --- Potential Leg Potential Leg > --- UTILITY (2) ------ High-capacity Storage Unit Core Shielding > --- WEAPON (2) ------- Light Assault Rifle Light Assault Rifle > --- INVENTORY (20) --- Medium Matter Pod (100) Light Assault Rifle Rocket Launcher Rocket Launcher Peak State ------------ > --- POWER ------------ (None) > --- PROPULSION ------- Potential Leg Potential Leg > --- UTILITY ---------- High-capacity Storage Unit Core Shielding > --- WEAPON ----------- Light Assault Rifle Light Assault Rifle > --- INVENTORY -------- Medium Matter Pod Core Shielding Light Assault Rifle Rocket Launcher Rocket Launcher [Rating: 24] Favorites ----------- Power Light Ion Engine Engine Light Ion Engine Propulsion Compact Wheel Treads Improved Treads Leg Potential Leg Wheel Compact Wheel Utility Huge Storage Unit Device Seismic Detector Storage Huge Storage Unit Processor Signal Interpreter Protection Core Shielding Weapon Assault Rifle Ballistic Gun Assault Rifle Launcher Rocket Launcher Special Melee Weapon Datajack Build | -11 -10 -10 -10 ------- Run | Scr Mat Min Exi Slots Evolved . | . . . . Power . | . . . . Propulsion . | . . . . Utility . | . . . . Weapon . | . . . . Parts Attached 42 | 5 16 1 20 Power 5 | . 5 . . Engine 5 | . 5 . . Core . | . . . . Reactor . | . . . . Propulsion 9 | 2 1 . 6 Treads 4 | . . . 4 Leg 2 | . . . 2 Wheel 3 | 2 1 . . Hover . | . . . . Flight . | . . . . Utility 9 | 1 4 . 4 Device 1 | 1 . . . Storage 3 | . 2 . 1 Processor 1 | . . . 1 Hackware . | . . . . Protection 4 | . 2 . 2 Artifact . | . . . . Weapon 19 | 2 6 1 10 Energy Gun . | . . . . Energy Cannon . | . . . . Ballistic Gun 16 | 2 5 1 8 Ballistic Cannon . | . . . . Launcher 2 | . 1 . 1 Special Weapon . | . . . . Impact Weapon . | . . . . Slashing Weapon . | . . . . Piercing Weapon . | . . . . Special Melee Weapon 1 | . . . 1 Unidentified Prototypes . | . . . . Parts Lost 13 | . 2 . 11 Power 1 | . . . 1 Propulsion 5 | . 1 . 4 Utility 2 | . 1 . 1 Weapon 5 | . . . 5 Highest Loss Streak 7 | . 1 . 7 To Critical Strikes 8 | . . . 8 Average Slot Usage (%) 93 | . 97 100 86 Engine 12 | . 12 14 12 Treads 7 | . . . 18 Wheel 20 | . 27 28 8 Storage 13 | . 13 14 14 Processor 3 | . . . 8 Protection 10 | . 13 14 5 Ballistic Gun 21 | . 27 28 11 Special Melee Weapon 1 | . . . 3 Naked Turns . | . . . . Heaviest Build 92 | 4 92 88 88 Greatest Support 46 | 32 32 26 46 Greatest Overweight (x) 5 | . 5 3 3 Average Overweight (x) 2 | . 2 3 1 Largest Inventory Capacity 25 | 5 25 25 25 Average Capacity 22 | 5 22 25 21 Most Carried 25 | 4 25 25 25 Average Carried 20 | 3 21 24 18 Final Capacity 25 | 5 25 25 20 Final Carried 25 | 4 25 25 4 Class Distribution -------------------- 100% | Mutant Dominant Class ---------------- Mutant | -10/Materials Mutant | -10/Mines Mutant | -10/Exiles Resources | -11 -10 -10 -10 ----------- Run | Scr Mat Min Exi Matter Collected 1204 | 275 526 107 296 Remotely . | . . . . Salvage Created 954 | 116 675 86 77 Parts 65 | 5 56 3 1 Haulers Intercepted 2 | . 2 . . Recyclers Shooed 2 | 1 1 . . Parts Field Recycled . | . . . . Retrieved Matter . | . . . . Parts Self-Destructed . | . . . . Prevented . | . . . . Kills | -11 -10 -10 -10 ------- Run | Scr Mat Min Exi Combat Hostiles Destroyed 23 | . 17 2 4 Guns 18 | . 15 2 1 AOE 5 | . 2 . 3 Classes Destroyed 9 | 2 6 . 1 Worker 4 | . 4 . . Tunneler 1 | 1 . . . Hauler 2 | . 2 . . Recycler 2 | 1 . 1 . Operator 2 | . 2 . . Watcher 2 | . 2 . . Swarmer 11 | . 9 2 . Grunt 8 | . 8 . . Assembled 4 | . . . 4 Thug 1 | . . . 1 Best Kill Streak 4 | 2 4 2 3 Combat Bots Only 4 | . 4 2 3 Max Kills in Single Turn 1 | 1 1 1 1 Gunslinging . | . . . . Exploded 1 | . 1 . 1 Melee . | . . . . Uniques/NPCs Destroyed . | . . . . Combat | -11 -10 -10 -10 -------- Run | Scr Mat Min Exi Damage Taken 1929 | . 421 9 1499 Core 268 | . 46 . 222 Absorbed by Shields . | . . . . Redirected to Shielding 54 | . 4 . 50 Core Remaining (%) 100 | 100 . . . Volleys Fired 184 | 8 103 7 66 Largest 2 | 2 2 2 2 Hottest 40 | 40 40 40 40 Shots Fired 348 | 16 204 15 113 Gun 339 | 16 202 15 106 Cannon . | . . . . Launcher 9 | . 2 . 7 Special . | . . . . Kinetic 339 | 16 202 15 106 Thermal . | . . . . Explosive 9 | . 2 . 7 Electromagnetic . | . . . . Robot Hit Streak 22 | 6 7 7 22 Robot Miss Streak 5 | 1 4 1 5 Penetration Max . | . . . . Secondary Targets 1 | . 1 . . Max Gunslinging Chain 1 | . 1 . . Shots Hit Robots 218 | 11 114 9 84 Core Hits 84 | 4 51 3 26 Critical Kills 1 | . 1 . . Critical Parts Destroyed 2 | 1 1 . . Critical Strikes 4 | 1 2 . 1 Destroy 4 | 1 2 . 1 Melee Attacks 4 | . . . 4 Impact . | . . . . Slashing . | . . . . Piercing . | . . . . Sneak Attacks 4 | . . . 4 Combat Hostiles . | . . . . Follow-up Attacks . | . . . . Damage Inflicted 2658 | 122 1408 159 969 Guns 2206 | 122 1173 159 752 Cannons . | . . . . Explosions 452 | . 235 . 217 Melee . | . . . . Ramming . | . . . . Kinetic 2206 | 122 1173 159 752 Thermal . | . . . . Explosive 402 | . 185 . 217 Electromagnetic 50 | . 50 . . Impact . | . . . . Slashing . | . . . . Piercing . | . . . . Highest Corruption 2 | . 2 2 2 Average Corruption 1 | . 1 2 2 Corruption Purged . | . . . . Corruption Blocked . | . . . . Effects 30 | . 9 6 15 Message Errors 6 | . 2 1 3 Matter Fused 8 | . 3 1 4 Heat Flow Errors 5 | . . 1 4 Energy Discharges 3 | . 1 2 . Data Loss (minor) 3 | . 1 . 2 Data Loss (major) 1 | . 1 . . Misfires 2 | . . 1 1 Alerts 1 | . 1 . . Weapon Failures 1 | . . . 1 Overload Shots . | . . . . Overflow Damage 14 | . 13 . 1 Projectiles . | . . . . Explosions 14 | . 13 . 1 Melee . | . . . . Knockbacks . | . . . . Impact . | . . . . Kinetic . | . . . . Secondary . | . . . . Self-Inflicted Damage . | . . . . Shots . | . . . . Rammed . | . . . . Targets Rammed . | . . . . Kicked . | . . . . Crushed . | . . . . Highest Temperature 255 | . 24 116 255 Average Temperature 43 | . 6 66 81 Received Heat Transfer 312 | . 132 . 180 Siege Activations . | . . . . Robots Corrupted . | . . . . Combat Hostiles . | . . . . Parts Fried . | . . . . Impact Corruptions . | . . . . Robots Melted . | . . . . Combat Hostiles . | . . . . Parts Melted . | . . . . Heat Transferred . | . . . . Parts Sabotaged . | . . . . Parts Stolen . | . . . . Parts Stripped . | . . . . Power Chain Reactions . | . . . . Missiles Intercepted . | . . . . Alert | -11 -10 -10 -10 ------- Run | Scr Mat Min Exi Peak Influence 385 | 10 385 198 . Initial 119 | . 6 119 . Average 187 | 4 248 81 . Maximum Alert Level 1 | . 1 . . Low Security (%) 49 | 100 22 100 . Level 1 50 | . 77 . . Level 2 . | . . . . Level 3 . | . . . . Level 4 . | . . . . Level 5 . | . . . . High Security . | . . . . Max Security . | . . . . Squads Dispatched 5 | . 5 . . Investigation 3 | . 3 . . Extermination . | . . . . Reinforcement 2 | . 2 . . Assault . | . . . . Garrison . | . . . . Intercept . | . . . . Searches Triggered . | . . . . Construction Impeded . | . . . . Haulers Reinforced . | . . . . Active Scanning Responses . | . . . . Cargo Convoy Interrupts . | . . . . Stealth | -11 -10 -10 -10 --------- Run | Scr Mat Min Exi Distress Signals . | . . . . Communications Jammed . | . . . . Distress Signals . | . . . . Times Spotted 43 | . 32 3 8 Peak Tracking Total 9 | . 3 3 9 Tactical Retreats 1 | . 1 . . Traps | -11 -10 -10 -10 ------- Run | Scr Mat Min Exi Traps Triggered 2 | . 2 . . Indirectly . | . . . . Trap Hack Attempts . | . . . . Triggered . | . . . . Disarmed . | . . . . Reprogrammed . | . . . . Reused . | . . . . Traps Extracted . | . . . . Installed . | . . . . Triggered . | . . . . Exploded 3 | . . . 3 Machines | -11 -10 -10 -10 ---------- Run | Scr Mat Min Exi Machines Disabled 5 | . 2 . 3 Max in Single Turn 1 | . 1 . 1 Machines Sabotaged . | . . . . Garrisons Compromised . | . . . . Overloaded Fab Kills . | . . . . Hacking | -11 -10 -10 -10 --------- Run | Scr Mat Min Exi Machines Accessed 10 | . 8 . 2 Terminals 6 | . 6 . . Fabricators . | . . . . Repair Stations . | . . . . Recycling Units 2 | . 2 . . Scanalyzers . | . . . . Garrison Access . | . . . . Total Hacks 39 | . 37 . 2 Successful 24 | . 22 . 2 Failed 14 | . 14 . . Catastrophic 2 | . 2 . . Database Lockouts 1 | . 1 . . Manual 28 | . 27 . 1 Terminals 29 | . 29 . . Fabricators . | . . . . Repair Stations . | . . . . Recycling Units 8 | . 8 . . Scanalyzers . | . . . . Garrison Access . | . . . . Terminal Hacks 12 | . 10 . 2 Record 2 | . 1 . 1 Robot Analysis 3 | . 3 . . Prototype ID Bank 2 | . 2 . . Branch Access Points 2 | . 2 . . Terminal Index 1 | . 1 . . Locate Traps 1 | . 1 . . EX-Prototype ID Bank 1 | . . . 1 Fabricator Hacks . | . . . . Repair Station Hacks . | . . . . Recycling Unit Hacks 2 | . 2 . . Retrieve Components 2 | . 2 . . Scanalyzer . | . . . . Garrison Access Hacks . | . . . . Unauthorized Hacks 10 | . 10 . . Terminals 7 | . 7 . . Botnet 6 | . 6 . . Operators 1 | . 1 . . Fabricators . | . . . . Repair Stations . | . . . . Recycling Units 3 | . 3 . . Recyclers 1 | . 1 . . Tunnel 2 | . 2 . . Scanalyzers . | . . . . Garrison Access . | . . . . Data Cores Recovered . | . . . . Used . | . . . . Hacking Detections 7 | . 7 . . Full Trace Events 4 | . 4 . . Feedback Events . | . . . . Feedback Blocked . | . . . . Robot Schematics Acquired . | . . . . Robots Built . | . . . . Authchips . | . . . . Time . | . . . . Total Robot Build Rating . | . . . . Part Schematics Acquired . | . . . . Parts Built . | . . . . Authchips . | . . . . Time . | . . . . Total Part Build Rating . | . . . . Parts Repaired . | . . . . Time . | . . . . Parts Recycled . | . . . . Recycled Matter . | . . . . Retrieved Matter . | . . . . Retrieved Components 11 | . 11 . . Parts Scanalyzed . | . . . . Part Schematics Acquired . | . . . . Parts Damaged . | . . . . Bothacking | -11 -10 -10 -10 ------------ Run | Scr Mat Min Exi Used RIF Installer . | . . . . Robots Hacked 4 | . . . 4 Non-combat 3 | . . . 3 Combat 1 | . . . 1 Robot Hacks Applied 4 | . . . 4 parse_system 4 | . . . 4 Relay Couplers Released . | . . . . Fabnet Peak Effective % . | . . . . Robots Rewired . | . . . . Allies Hacked . | . . . . Hacks Repelled . | . . . . Allies | -11 -10 -10 -10 -------- Run | Scr Mat Min Exi Total Allies 1 | . . 1 . Largest Group 1 | . . 1 1 Highest-Rated Group 31 | . . 31 31 Highest-Rated Ally 31 | . . 31 31 Total Orders . | . . . . Ally Attacks 8 | . . 8 . Total Damage 105 | . . 105 . Kills 1 | . . 1 . Allies Corrupted . | . . . . Allies Melted . | . . . . Intel | -11 -10 -10 -10 ------- Run | Scr Mat Min Exi Robot Analysis Total 3 | . 3 . . Derelict Logs Recovered 1 | . . 1 . Drone Launches . | . . . . Drone Recoveries . | . . . . Exploration | -11 -10 -10 -10 ------------- Run | Scr Mat Min Exi Turns Passed 3300 | 73 1331 637 1259 Spaces Moved 1894 | 40 737 445 672 Core 1 | 1 . . . Treads 379 | . . . 379 Legs . | . . . . Wheels 1514 | 39 737 445 293 Hover . | . . . . Flight . | . . . . Fastest Speed 50 | 50 100 135 135 Average Speed 139 | 98 129 135 156 Slowest Speed 240 | 100 175 135 240 Overloaded Moves . | . . . . Propulsion Burnouts . | . . . . Robots Hopped . | . . . . Cave-ins Triggered . | . . . . Exploration Rate (%) 67 | 3 96 98 72 Regions Visited 3 Branch Regions 2 Pre-discovered Areas 3 | . 2 . 1 Known Exits Taken 1 | . 1 . . Unknown Exits Taken 2 | 1 . 1 . Scrap Searched 2 | . . 2 . Spaces Dug 21 | . . . 21 Terrain Destroyed 49 | . 2 . 47 Melee . | . . . . Projectile . | . . . . AOE 49 | . 2 . 47 Terrain Rammed . | . . . . Walls Destroyed . | . . . . Machines Disabled . | . . . . Actions | -11 -10 -10 -10 --------- Run | Scr Mat Min Exi Total 2253 | 56 935 472 790 Wait 38 | . 32 6 . Move 1891 | 39 736 444 672 Hop . | . . . . Pick Up 50 | 4 32 7 7 Fast Attach 8 | 5 3 . . Attach 19 | . 3 . 16 Detach 4 | . . . 4 Swap 15 | . 10 1 4 Drop 40 | . 16 7 17 Fire 184 | 8 103 7 66 Melee 4 | . . . 4 Ram . | . . . . Kick . | . . . . Crush . | . . . . Escape Stasis . | . . . . Rewire . | . . . . Trap . | . . . . Miscellaneous . | . . . . Route ------- -11/Scrapyard -10/Materials (discovered 4 exits: [*Mat x3] / *Min) -10/Mines (discovered 3 exits: [*Mat x2] / *Exi) -10/Exiles (discovered 2 exits: *Min x2) History --------- Turn | Location | Event 14 | -11/Scrapyard | Discovered new exit (range 15) 74 | -11/Scrapyard | Entered Materials 116 | -10/Materials | Discovered new exit (range 6) 322 | -10/Materials | Build established: Mutant 681 | -10/Materials | Discovered new exit (range 16) 708 | -10/Materials | Central database locked down 708 | -10/Materials | Identified exit to Mines 1015 | -10/Materials | Discovered new exit (range 5) 1107 | -10/Materials | Discovered new exit (range 16) 1405 | -10/Materials | Entered Mines 1471 | -10/Mines | Assembled infested the area 1524 | -10/Mines | Met 8R-AWN 1566 | -10/Mines | Escorted by a lone wolf Derelict 1705 | -10/Mines | Learned Materials security intel 1705 | -10/Mines | Discovered new exit (range 2) 1949 | -10/Mines | Discovered new exit (range 16) 2035 | -10/Mines | Discovered new exit (range 5) 2042 | -10/Mines | Entered Exiles 2042 | -10/Exiles | Accompanied by 1 ally 2060 | -10/Exiles | Discovered new exit (range 15) 2079 | -10/Exiles | Identified exit to Mines 2110 | -10/Exiles | Welcomed by 8R-AWN 2132 | -10/Exiles | Met EX-HEX 2198 | -10/Exiles | Met EX-DEC 2236 | -10/Exiles | Learned location of Zion (-7) 2259 | -10/Exiles | Met EX-BIN 2280 | -10/Exiles | Aligned with FarCom system 2281 | -10/Exiles | Given EX-Vault access code 2312 | -10/Exiles | Opened EX-Vault 2343 | -10/Exiles | Warned to stay clear of 0b10 Research branches 2432 | -10/Exiles | Discovered exit to Mines (range 14) 2676 | -10/Exiles | Learned about 8R-AWN's background 2871 | -10/Exiles | Found Potential Leg 2873 | -10/Exiles | Found Potential Leg 3082 | -10/Exiles | Attacked by the Exiles 3205 | -10/Exiles | Core integrity fell below 50% 3244 | -10/Exiles | Lost 7 parts (1p2n4w) 3256 | -10/Exiles | Core integrity fell below 20% 3301 | -10/Exiles | Destroyed by 8R-AWN with 8R-AWN's Boregun Last Messages --------------- 03255_ Lgt. Assault Rifle destroyed. 03255_ Penetrated by HV Slug. 03259_ HV Slug penetrates Machine. 03259_ HV Slug penetrates Wall. 03259_ Penetrated by HV Slug. 03267_ Critical hit (Destroy). 03267_ Imp. Treads destroyed. 03267_ HV Slug penetrates Wall. 03272_ Penetrated by HV Slug. 03280_ System corrupted: Matter fused (-9). 03280_ Dropped Med. Matter Pod. 03280_ Penetrated by HV Slug. 03281_ Extracted 100 matter. 03283_ System corrupted: Lgt. Assault Rifle jammed. 03284_ Penetrated by HV Slug. 03289_ Critical hit (Destroy). 03289_ Imp. Treads destroyed. 03289_ Penetrated by HV Slug. 03297_ Core Shielding destroyed. 03301_ Penetrated by HV Slug. Map ----- +----------------------------------------------------+ | ?????????????????????????????????????????????????? | | ??????????#####??????????????????????????????????? | | ?????????## ##?????????????????????????????????? | | ?????????# ! #?????????????????????????????????? | | ?????????# =>! #?????????????????????????????????? | | ?????????#!*==!###???????????????????????????????? | | ?????????# !=!! #???????????????????????????????? | | ?????????# / ##???????????????????????????????? | | ?????????## #????????????????????????????????? | | ??????????# ##???????????????????????????????? | | ??????????## #????????????#######????????????? | | ???????????# #######??????#!!! "#????????????? | | ???????????# #""##?????# "#????????????? | | ???????????## #?????# "#????????????? | | ????????????##" ##???## ""#????????????# | | ????????????#"" #####" ""#???????????? | | ????????????#### ## ""#????????????" | | ???????????????## # ######????????"" | | ????????????????#"## ###?????#"" | | ????????????????####### # ##????#"" | | ??????????????????????### = # #????? | | ????????????????########" % #??????" | | ????????????????# !!""""" #?????# | | ??????????????###! g###" ??### | | ??????????????# ; #?##" ###X# | | ??????????????### @ ##??#" | | ????????????????# ! ;;#???#"# % | | ????????????????###;###;#;##???#### | | ?????????????????????# # #???????##" | | ????????????????????# #? ##?????????### | | ???????????????????# #?? ?????????????## | | ??????????????????# #???#??????????????## | | ?????????????????# #????????????????????##" | | ????????????????# #??????????????????????#""" | | ???????????????? #??????????????????????##" | | ??????????????? ????????????????????????#"" | | ?????????????? ????????????????????????##""" | | ???????????????????????????????????????#""" | | ???????????????????????????????????????#""" | | ???????????????????????????????????????#"" | | ???????????????????????????????????????#""" | | ???????????????????????????????????????#"" | | ???????????????????????????????????????##"" | | ????????????????????????????????????????#"""" | | ????????????????????????????????????????## | | ?????????????????????????????????????????#" | | ?????????????????????????????????????????#"""" | | ?????????????????????????????????????????#"" | | ?????????????????????????????????????????#" | | ??????????????????????????????????????????""" | +----------------------------------------------------+ Best States ------------- Heat Dissipation 25 Energy Generation 10 Energy Capacity 250 Matter Stores 300 Matter Capacity 300 Sight Range 16 Terrain Scan Density 10 Armor Coverage 150 Core Shielding 20 Evasion (%) 40 Recoil Reduction 2 Item Schematics ----------------- None Robot Schematics ------------------ None Fabricated ------------ Nothing Alien Tech Used ----------------- None Achievements -------------- None Challenges ------------ None Game ------ Seed TacticalReflectiveCompressor Manual? 0 Play Time 00:24:45 Cumulative 499.0 hours Start 2022.05.24 @ 12:16:28 End 2022.05.24 @ 12:39:16 Sessions 1 Manual Loads 0 Difficulty Rogue Special Mode None Game No. 413 Rogue 413 Adventurer 0 Explorer 0 Win Type - Total 3 Types 2/0/0/1/0/0/0/0/0 Lore% 69 Gallery% 80 Achievement% 66 Wizard Run 0 Options --------- ASCII 0 Keyboard 1 Movement Numpad Keybinds 0 Fullscreen 1 Font 12/Terminus Map View 83x54 Tactical HUD 1 Map Filters NONE Filters NONE Steam 1 RUN: a182c0b3-f8c9-4cff-ae17-fb75a15b0f36